bitfinex/quotes_ETHUSD_20251201
["timestamp","ask_amount","ask_price","bid_price","bid_amount"]
[1764622469028,0.002,2759.5,2759.3,0.36224159]
[1764622470323,3.98841946,2759.5,2758.8,0.09979107]
[1764622470504,0.72559411,2759.4,2758.6,0.579]
[1764622470700,0.72559411,2759.4,2758.6,0.67879107]
[1764622470907,16.59483932,2759.2,2757.7,7.25242048]
[1764622471093,7.2484778,2759.2,2758.2,0.09979107]
[1764622471294,7.2484778,2759.2,2758.4,0.36224159]
[1764622471604,0.77198792,2759.1,2758.4,0.36224159]
[1764622471933,0.77198792,2759.1,2758.3,0.09979107]
[1764622472723,0.77198792,2759.1,2758.3,0.67879107]
[1764622473133,3.62450163,2759.0,2758.4,3.62529002]
[1764622473896,3.62450163,2759.0,2758.3,4.30417351]
[1764622473897,3.62450163,2759.0,2758.3,4.30414805]
[1764622474239,8.05109149,2759.0,2758.4,0.579]
[1764622474525,7.24900326,2759.0,2758.3,3.72518758]
[1764622474731,3.62450163,2759.0,2758.3,4.30418758]
[1764622475529,7.2484778,2759.2,2758.3,7.92960903]
[1764622475825,7.2484778,2759.2,2758.6,0.09979107]
[1764622476032,0.77198792,2759.1,2758.6,0.09979107]
[1764622477006,0.72559411,2759.2,2758.3,7.82981796]
[1764622477205,0.72559411,2759.2,2758.5,0.09979107]
[1764622477506,3.62437026,2759.1,2758.6,3.62502718]
[1764622477707,3.62437026,2759.1,2758.5,3.72488979]
[1764622478010,7.24874052,2759.1,2758.5,0.09979107]
[1764622478199,1.52302757,2759.0,2757.8,7.61439909]
[1764622478403,1.52302757,2759.0,2757.8,0.36224159]
[1764622478404,11.5765548,2759.0,2757.8,0.36224159]
[1764622478604,0.72559411,2758.8,2758.1,0.001]
[1764622479616,0.72559411,2758.6,2758.1,0.001]
[1764622480398,0.72559411,2758.4,2758.1,0.001]
[1764622480601,0.36392,2758.2,2758.1,0.001]
[1764622481539,0.0997041,2758.2,2758.1,0.001]
[1764622481738,4.4508511,2758.2,2758.1,0.001]
[1764622481948,5.70453397,2758.2,2758.1,0.001]
[1764622485441,6.28353397,2758.2,2758.1,0.001]
[1764622486039,6.18382987,2758.2,2758.1,0.001]
[1764622486239,6.54774987,2758.2,2758.1,0.001]
[1764622487742,12.99774987,2758.2,2758.1,0.001]
[1764622489228,12.22832587,2758.2,2758.1,0.001]
[1764622489860,12.59224587,2758.2,2758.1,0.001]
[1764622490042,12.22832587,2758.2,2758.1,0.001]
[1764622490238,10.07555289,2758.2,2758.1,0.001]
[1764622490646,10.801147,2758.2,2758.1,0.001]
[1764622490962,11.165067,2758.2,2758.1,0.001]
[1764622491644,11.570571,2758.2,2758.1,0.001]
[1764622494660,10.801147,2758.2,2758.1,0.001]
[1764622494852,12.30170506,2758.2,2758.1,0.001]
[1764622495978,12.66762506,2758.2,2758.1,0.001]
[1764622499376,12.30370506,2758.2,2758.1,0.001]
[1764622499585,0.002,2758.2,2758.1,0.001]
[1764622499880,0.002,2758.2,2758.1,0.36324159]
[1764622500355,14.23317823,2758.2,2758.1,0.001]
[1764622500554,4.353147,2758.2,2758.1,0.001]
[1764622501083,0.002,2758.2,2758.1,0.001]
[1764622502661,0.581,2758.2,2758.1,0.001]
[1764622503053,0.94492,2758.2,2758.1,0.001]
[1764622503266,1.350424,2758.2,2758.1,0.001]
[1764622503466,4.97597689,2758.2,2758.1,0.001]
[1764622503673,6.56171252,2758.2,2758.1,0.001]
[1764622504268,1.08951411,2758.1,2758.0,0.001]
[1764622504482,1.08951411,2758.1,2756.7,0.001]
[1764622504483,0.405504,2757.6,2756.7,0.001]
[1764622504668,0.72559411,2757.1,2756.7,0.001]
[1764622504871,1.74560624,2757.1,2756.7,0.001]
[1764622505687,5.37260562,2757.1,2756.7,0.001]
[1764622506496,5.95160562,2757.1,2756.7,0.001]
[1764622507264,0.405504,2757.0,2756.7,0.001]
[1764622507573,8.999605,2757.1,2756.7,0.001]
[1764622507777,0.72559411,2756.9,2756.7,0.001]
[1764622508707,3.62699938,2757.1,2756.7,0.001]
[1764622508877,0.72559411,2757.4,2756.7,0.001]
[1764622509212,0.72559411,2757.4,2756.7,0.36324159]
[1764622509360,0.72559411,2756.9,2756.7,0.001]
[1764622509563,2.10952624,2756.9,2756.7,0.001]
[1764622509789,5.73678874,2756.9,2756.7,0.001]
[1764622510687,5.37286874,2756.9,2756.7,0.001]
[1764622510860,4.35222214,2757.4,2756.7,0.001]
[1764622511057,0.579,2757.3,2756.7,0.001]
[1764622511284,8.55782691,2757.4,2756.7,0.001]
[1764622511494,8.65753101,2757.4,2756.7,0.001]
[1764622511780,15.81108297,2757.4,2756.7,0.001]
[1764622511991,0.36392,2757.1,2756.7,0.001]
[1764622512482,0.72559411,2757.2,2756.7,0.001]
[1764622513796,7.25399876,2757.1,2756.7,0.001]
[1764622515394,0.36392,2756.9,2756.7,0.001]
[1764622515893,11.57228061,2756.9,2756.7,0.001]
[1764622516091,14.46027609,2756.9,2756.7,0.001]
[1764622518294,13.69085209,2756.9,2756.7,0.001]
[1764622518485,14.26985209,2756.9,2756.7,0.001]
[1764622519803,13.69085209,2756.9,2756.7,0.001]
[1764622520007,0.002,2757.9,2756.7,0.001]
[1764622520307,0.002,2757.9,2757.0,0.405504]
[1764622520510,0.002,2757.9,2757.5,0.36224159]
[1764622520675,0.002,2757.9,2757.5,1.70455549]
[1764622520879,0.002,2757.9,2757.5,2.11005949]
[1764622521079,0.002,2757.9,2757.5,2.32106544]
[1764622521602,0.002,2757.9,2757.8,0.50529507]
[1764622522010,0.002,2757.9,2757.8,1.40075709]
[1764622522511,0.002,2757.9,2757.8,1.97975709]
[1764622523507,0.002,2757.9,2757.8,6.33142995]
[1764622523691,0.002,2757.9,2757.8,7.39975298]
[1764622525499,0.002,2757.9,2757.8,6.50429096]
[1764622525706,0.002,2757.9,2757.8,5.92529096]
[1764622525882,0.002,2757.9,2757.8,6.50429096]
[1764622529399,0.002,2757.9,2757.8,6.9943318]
[1764622531807,0.002,2757.9,2757.8,5.37319285]
[1764622532014,0.002,2757.9,2757.8,6.50429096]
[1764622532392,0.002,2757.9,2757.8,6.09878696]
[1764622532610,0.002,2757.9,2757.8,6.50429096]
[1764622538129,0.002,2758.5,2757.9,1.13109811]
[1764622538295,0.002,2758.5,2758.4,0.50529507]
[1764622538497,0.002,2758.5,2758.4,1.08429507]
[1764622538698,0.002,2758.5,2758.4,5.4351792]
[1764622538895,0.002,2758.5,2758.4,5.69762972]
[1764622539128,0.002,2758.5,2758.4,6.6299332]
[1764622539455,0.002,2758.5,2758.4,6.36748268]
[1764622539807,0.002,2758.5,2758.4,5.06288857]
[1764622540024,0.002,2758.5,2758.4,5.64188857]
[1764622540235,0.002,2758.5,2758.4,4.13058509]
[1764622540414,0.002,2758.5,2758.4,4.30408109]
[1764622542133,0.002,2758.5,2758.4,4.70958509]
[1764622544134,0.002,2758.5,2758.4,5.4351792]
[1764622544935,0.002,2758.5,2758.4,4.8561792]
[1764622545237,0.002,2758.5,2758.4,6.28333763]
[1764622554936,0.002,2759.1,2758.5,1.13109811]
[1764622555125,0.002,2759.1,2759.0,0.76774559]
[1764622555312,0.002,2759.1,2759.0,1.34674559]
[1764622556943,0.002,2759.1,2759.0,5.69684133]
[1764622557147,0.002,2759.1,2759.0,6.15320181]
[1764622557722,0.002,2759.1,2759.0,5.57420181]
[1764622557920,0.002,2759.1,2759.0,4.4431037]
[1764622558138,0.002,2759.1,2759.0,5.0221037]
[1764622558819,0.002,2759.1,2759.0,5.4276077]
[1764622559226,0.002,2759.1,2759.0,6.15320181]
[1764622559614,0.002,2759.5,2759.1,1.13109811]
[1764622559846,0.002,2759.5,2759.4,14.19171847]
[1764622560033,1e-08,2759.8,2759.7,0.50529507]
[1764622561048,0.002,2760.4,2760.3,0.50529507]
[1764622561049,1e-08,2760.4,2760.3,0.50529507]
[1764622561257,1e-08,2760.4,2760.3,11.40919277]
[1764622561458,1e-08,2760.4,2760.3,2.1437688]
[1764622561659,1e-08,2760.4,2760.3,1.4933397]
[1764622561838,1e-08,2760.4,2760.3,5.4326838]
[1764622563055,1e-08,2760.4,2760.3,4.8536838]
[1764622563217,1e-08,2760.4,2760.3,5.4326838]
[1764622564054,1e-08,2760.4,2760.3,4.8536838]
[1764622564258,1e-08,2760.4,2760.3,5.4326838]
[1764622566565,1e-08,2760.4,2760.3,4.4481798]
[1764622566765,1e-08,2760.4,2760.3,5.0271798]
[1764622567466,1e-08,2760.4,2760.3,6.29769346]
[1764622568753,1e-08,2760.4,2760.3,15.63454653]
[1764622569080,0.002,2760.7,2760.6,0.50529507]
[1764622569842,1e-08,2761.2,2760.7,0.405504]
[1764622570049,1e-08,2761.2,2761.1,14.1894872]
[1764622570253,1e-08,2761.2,2761.1,14.82306507]
[1764622571338,1e-08,2761.2,2761.1,5.486212]
[1764622571540,1e-08,2761.2,2761.1,6.065212]
[1764622572767,1e-08,2761.2,2761.1,6.77426939]
[1764622575771,1e-08,2761.2,2761.1,6.77326939]
[1764622576184,0.72559411,2763.3,2762.8,0.09979107]
[1764622576485,0.72559411,2763.3,2762.7,0.578]
[1764622576486,1.94166176,2763.3,2762.7,0.578]
[1764622577386,1.21606765,2763.3,2762.8,0.29937321]
[1764622577551,7.23731418,2763.5,2762.8,0.578]
[1764622577751,0.72559411,2763.6,2763.0,0.19958214]
[1764622578067,0.72559411,2763.6,2762.9,0.36224159]
[1764622578381,1.15806073,2763.5,2762.8,0.94024159]
[1764622578956,1.15806073,2763.5,2762.8,0.578]
[1764622579593,1.15806073,2763.5,2762.7,0.77758214]
[1764622579786,0.72559411,2763.3,2762.2,0.09979107]
[1764622579987,0.72559411,2763.3,2762.3,0.578]
[1764622580185,1.19457057,2763.2,2762.3,0.578]
[1764622580487,1.19457057,2763.2,2762.7,0.09979107]
[1764622581667,0.72559411,2763.1,2762.7,0.09979107]
[1764622581868,0.72559411,2763.1,2762.6,3.61968193]
[1764622582068,0.72559411,2763.1,2762.7,0.36224159]
[1764622582262,1.16005393,2763.1,2762.7,0.36224159]
[1764622582662,0.43445982,2763.1,2762.7,0.36224159]
[1764622582868,7.96331711,2763.3,2762.7,0.36224159]
[1764622583260,7.96331711,2763.3,2762.3,0.578]
[1764622583466,7.96331711,2763.3,2762.4,0.19958214]
[1764622583696,3.61912344,2763.1,2762.5,3.6199095]
[1764622584098,3.61912344,2763.1,2762.4,0.19958214]
[1764622584099,0.72559411,2763.0,2762.4,0.19958214]
[1764622584406,0.36392,2762.5,2761.6,0.09979107]
[1764622584581,1.08951411,2762.7,2761.7,0.09979107]
[1764622584900,1.04263672,2762.6,2761.7,0.09979107]
[1764622585078,0.72559411,2762.3,2761.2,0.29937321]
[1764622585269,1.08951411,2762.3,2761.3,0.578]
[1764622585476,0.72559411,2762.3,2761.3,0.67779107]
[1764622585780,7.24086744,2762.1,2761.2,0.77758214]
[1764622585990,11.22522116,2762.1,2761.2,0.77758214]
[1764622586191,10.86130116,2762.1,2761.2,0.77758214]
[1764622586395,1.19039379,2762.0,2761.2,0.77758214]
[1764622586612,1.19039379,2762.0,2761.3,0.09979107]
[1764622587792,7.24139178,2761.9,2761.3,0.09979107]
[1764622590879,0.72559411,2761.6,2761.3,0.09979107]
[1764622591109,0.72559411,2761.6,2761.0,0.09979107]
[1764622591314,0.72559411,2761.6,2760.5,7.82303742]
[1764622591614,0.72559411,2761.6,2761.1,0.09979107]
[1764622591786,7.2424407,2761.5,2761.0,0.09979107]
[1764622591984,3.62088748,2761.8,2761.0,0.09979107]
[1764622591985,7.24165398,2761.8,2761.0,3.72166392]
[1764622592612,7.24165398,2761.8,2761.0,0.09979107]
[1764622592792,7.24165398,2761.8,2760.9,3.62197966]
[1764622592980,7.24165398,2761.8,2760.7,0.36224159]
[1764622594425,3.62082699,2761.8,2760.8,7.60651861]
[1764622594720,0.43464211,2761.7,2761.0,0.36224159]
[1764622594895,0.43464211,2761.7,2760.8,3.9843801]
[1764622595211,1.16023622,2761.7,2760.9,0.578]
[1764622595416,1.52415622,2761.7,2760.9,0.578]
[1764622595616,1.23866372,2761.6,2760.9,0.578]
[1764622595937,0.72559411,2760.9,2760.3,0.001]
[1764622596135,7.433504,2761.5,2760.3,0.001]
[1764622596136,0.72559411,2760.5,2760.3,0.001]
[1764622596420,4.6289081,2760.4,2760.3,0.001]
[1764622596929,1.00624472,2760.4,2760.3,0.001]
[1764622597089,0.72559411,2760.7,2760.3,0.001]
[1764622597413,1.08951411,2760.7,2760.3,0.001]
[1764622598023,0.72559411,2760.7,2760.3,0.001]
[1764622598331,7.24480184,2760.6,2760.3,0.001]
[1764622598544,0.72559411,2760.5,2760.3,0.001]
[1764622598709,0.7970396,2760.4,2760.3,0.001]
[1764622600317,4.41970298,2760.4,2760.3,0.001]
[1764622601446,5.14529709,2760.4,2760.3,0.001]
[1764622602922,5.24500119,2760.4,2760.3,0.001]
[1764622605009,5.14529709,2760.4,2760.3,0.001]
[1764622609564,6.08821709,2760.4,2760.3,0.001]
[1764622610260,5.72429709,2760.4,2760.3,0.001]
[1764622611661,5.14529709,2760.4,2760.3,0.001]
[1764622613490,6.45,2760.9,2760.3,0.001]
[1764622613688,10.07201699,2760.9,2760.5,0.36224159]
[1764622614563,13.69403398,2760.9,2760.5,0.36224159]
[1764622614966,17.31605097,2760.9,2760.3,0.001]
[1764622615172,2.45719921,2760.8,2760.3,0.001]
[1764622615359,7.24480184,2760.6,2760.3,0.001]
[1764622615977,0.72559411,2760.6,2760.3,0.001]
[1764622616297,0.72559411,2760.7,2760.3,0.001]
[1764622616993,3.62197894,2761.0,2760.3,0.001]
[1764622616994,3.62196692,2761.0,2760.3,0.001]
[1764622617220,0.579,2761.4,2760.6,0.09979107]
[1764622617401,3.62148263,2761.3,2760.7,0.09979107]
[1764622617699,7.24301248,2761.3,2760.7,0.09979107]
[1764622617872,7.24301248,2761.3,2760.4,3.72240395]
[1764622618392,7.24301248,2761.3,2760.3,0.001]
[1764622618569,8.44592633,2761.3,2760.5,0.36224159]
[1764622620092,12.43137618,2761.3,2760.4,0.46218246]
[1764622620297,12.06745618,2761.3,2760.3,0.001]
[1764622620471,0.36392,2761.1,2760.3,0.72659411]
[1764622620677,0.36392,2761.1,2760.3,0.001]
[1764622620869,0.36392,2761.0,2760.3,0.001]
[1764622621088,10.04564501,2761.0,2760.3,0.001]
[1764622621285,1.0045645,2760.9,2760.3,0.001]
[1764622621490,8.44592633,2761.3,2760.5,0.09979107]
[1764622622791,4.82439648,2761.3,2760.5,0.09979107]
[1764622622992,3.62148263,2761.3,2760.4,0.72559411]
[1764622623293,3.6233717,2761.4,2761.1,0.19958214]
[1764622623294,0.002,2761.4,2761.1,0.19958214]
[1764622623597,0.002,2761.4,2761.3,0.09979107]
[1764622625495,0.002,2761.4,2761.3,3.7212737]
[1764622625890,0.002,2761.4,2761.3,4.2992737]
[1764622626313,0.002,2761.4,2761.3,5.09136118]
[1764622628020,0.002,2761.4,2761.3,6.22245929]
[1764622628419,0.002,2761.4,2761.3,6.36756163]
[1764622628923,0.002,2761.4,2761.3,6.22245929]
[1764622631340,0.002,2761.4,2761.3,0.09979107]
[1764622631489,0.002,2761.4,2761.3,0.578]
[1764622631895,0.002,2761.4,2761.3,4.19948263]
[1764622632492,0.002,2761.4,2761.3,3.62148263]
[1764622632733,0.002,2761.4,2761.3,0.67779107]
[1764622632917,0.002,2761.4,2760.7,0.72559411]
[1764622632918,0.002,2761.4,2761.2,0.09979107]
[1764622633101,0.002,2761.4,2761.3,0.578]
[1764622634031,0.002,2761.4,2761.3,4.19948263]
[1764622634212,0.002,2761.4,2761.3,4.2992737]
[1764622635695,0.002,2761.4,2761.3,0.578]
[1764622635894,0.002,2761.4,2761.3,4.19948263]
[1764622636120,0.002,2761.4,2761.3,3.62148263]
[1764622636322,0.002,2761.4,2761.3,4.19948263]
[1764622636961,0.002,2761.4,2761.3,4.56172422]
[1764622637360,0.002,2761.4,2761.3,5.380158]
[1764622637560,0.002,2761.4,2761.3,6.10575211]
[1764622641166,0.002,2761.4,2761.3,6.51125611]
[1764622646461,0.00192855,2761.7,2761.4,1.13109811]
[1764622646661,0.00192855,2761.7,2761.6,4.38883481]
[1764622646865,1e-08,2762.0,2761.9,0.50529507]
[1764622647090,1e-08,2762.0,2761.9,1.08329507]
[1764622648672,7.23274988,2765.2,2762.3,18.10085795]
[1764622648862,1.1116127,2765.1,2763.5,0.405504]
[1764622649063,1.83720681,2765.1,2764.1,0.36224159]
[1764622649578,1.1116127,2765.1,2764.1,0.578]
[1764622649792,0.0997041,2764.9,2764.1,0.578]
[1764622650159,0.0997041,2764.9,2764.0,0.36224159]
[1764622650362,0.72559411,2764.8,2764.1,0.578]
[1764622650777,0.36392,2764.6,2764.1,0.578]
[1764622650997,0.75979779,2764.5,2763.7,0.09979107]
[1764622651228,9.56634911,2764.4,2763.3,0.578]
[1764622651713,9.56634911,2764.4,2763.2,0.19958214]
[1764622651913,0.36392,2764.3,2763.2,0.578]
[1764622652119,0.9830565,2764.2,2763.2,0.94024159]
[1764622652823,7.23562822,2764.1,2763.2,4.5592336]
[1764622654218,7.33533232,2764.1,2763.2,0.578]
[1764622654605,7.33533232,2764.1,2763.2,4.19696394]
[1764622655041,7.33533232,2764.1,2763.2,0.578]
[1764622655246,1.19361307,2764.0,2763.2,0.578]
[1764622657435,1.19361307,2764.0,2763.3,7.237723]
[1764622657635,3.61788583,2764.1,2763.3,7.237723]
[1764622658205,0.72559411,2764.1,2763.3,3.71865257]
[1764622658667,10.03569368,2764.1,2763.3,0.09979107]
[1764622658846,10.03569368,2764.1,2763.4,0.578]
[1764622659170,1.86180438,2764.0,2763.4,0.578]
[1764622659373,3.61804939,2764.0,2763.4,4.19670464]
[1764622659757,0.9830565,2764.2,2763.4,8.17767677]
[1764622660066,0.72559411,2764.2,2763.7,0.09979107]
[1764622660236,0.72559411,2764.2,2763.7,0.578]
[1764622660669,0.76179779,2764.5,2763.8,0.09979107]
[1764622660866,0.72559411,2764.4,2763.8,0.09979107]
[1764622661049,0.72559411,2764.4,2763.7,0.67779107]
[1764622661241,3.61755236,2764.3,2763.7,0.67779107]
[1764622661437,7.23510472,2764.3,2763.6,3.61840606]
[1764622661643,7.23510472,2764.3,2763.6,0.09979107]
[1764622661839,0.72351047,2764.2,2763.6,0.09979107]
[1764622663071,0.72351047,2764.2,2763.5,0.578]
[1764622663252,4.34308231,2764.4,2763.8,3.61820681]
[1764622663450,7.96057051,2764.4,2763.7,3.81789216]
[1764622663840,4.34308231,2764.4,2763.7,3.81789216]
[1764622664253,7.96057051,2764.4,2763.7,0.19958214]
[1764622664451,0.79625705,2764.3,2763.7,3.81790947]
[1764622664666,0.79625705,2764.3,2763.7,0.19958214]
[1764622664963,0.79625705,2764.3,2763.7,3.81791331]
[1764622665342,3.61768323,2764.2,2763.7,3.81791331]
[1764622665975,4.34308231,2764.4,2763.7,3.81791331]
[1764622665976,0.72559411,2764.4,2763.7,7.43625104]
[1764622666135,0.72559411,2764.4,2763.7,8.59953222]
[1764622666670,0.002,2764.5,2763.7,8.59953222]
[1764622666877,3.61929941,2764.5,2763.7,8.59953222]
[1764622667248,3.6193025,2764.5,2763.9,0.09979107]
[1764622667569,3.6193025,2764.5,2763.9,0.67779107]
[1764622667769,4.40074876,2764.5,2763.9,4.29578955]
[1764622668673,3.61931049,2764.5,2764.0,0.36224159]
[1764622669052,3.61931049,2764.5,2763.9,4.29578955]
[1764622669249,0.002,2764.5,2763.9,7.91386545]
[1764622669444,3.61932369,2764.5,2763.9,4.29578955]
[1764622669772,0.002,2764.5,2763.9,4.29578955]
[1764622670981,0.79816521,2764.5,2763.9,0.578]
[1764622671948,0.79816521,2764.5,2763.6,3.61838159]
[1764622671949,7.234843,2764.4,2763.6,0.09979107]
[1764622672277,3.61930651,2764.5,2764.1,0.36224159]
[1764622672575,9.31009957,2764.4,2762.7,3.61958462]
[1764622672774,9.67203022,2764.4,2763.5,0.09979107]
[1764622672988,0.36392,2764.3,2763.4,0.578]
[1764622673195,2.45290698,2764.3,2763.4,0.578]
[1764622673697,3.17850109,2764.3,2763.3,0.94024159]
[1764622673896,2.81458109,2764.3,2763.3,0.578]
[1764622674101,0.72559411,2764.3,2763.6,3.81798127]
[1764622674461,4.34318333,2764.3,2763.6,3.81798127]
[1764622674656,7.96077255,2764.3,2763.6,3.81798127]
[1764622675185,0.36193065,2764.4,2763.8,0.09979107]
[1764622675367,0.002,2764.5,2763.8,0.09979107]
[1764622675576,3.61742994,2764.4,2763.8,0.09979107]
[1764622675773,3.61742994,2764.4,2763.8,0.67779107]
[1764622676176,0.72759411,2764.5,2763.8,4.29587158]
[1764622677566,0.002,2764.5,2763.8,7.91407839]
[1764622677766,0.002,2764.5,2763.9,0.79140784]
[1764622678981,0.002,2764.5,2763.9,8.02745005]
[1764622679300,0.002,2764.5,2764.1,0.36224159]
[1764622680395,0.72559411,2764.3,2763.6,0.578]
[1764622680691,0.002,2764.5,2763.6,0.578]
[1764622680692,9.31009957,2764.0,2763.6,0.578]
[1764622681299,7.2361518,2763.9,2763.1,0.09979107]
[1764622681498,3.6180759,2763.9,2763.1,0.578]
[1764622681666,1.30359411,2764.1,2763.1,0.94024159]
[1764622681867,1.30359411,2764.1,2763.2,0.09979107]
[1764622682210,1.30359411,2764.1,2763.1,0.578]
[1764622682404,0.72559411,2764.1,2763.5,0.09979107]
[1764622682717,3.61762274,2764.3,2763.5,0.09979107]
[1764622682859,0.72559411,2764.2,2763.6,0.19958214]
[1764622683360,3.61781411,2764.1,2763.6,3.81803001]
[1764622683566,0.002,2764.5,2763.6,7.43649867]
[1764622683787,0.002,2764.5,2763.8,0.36224159]
[1764622683993,3.61929815,2764.5,2763.8,0.36224159]
[1764622684180,0.002,2764.5,2763.9,0.578]
[1764622684769,3.61930096,2764.5,2763.9,0.578]
[1764622685194,7.96024938,2764.5,2763.8,0.94024159]
[1764622685896,7.96024938,2764.5,2763.9,0.09979107]
[1764622686196,7.96024938,2764.5,2763.8,7.81438737]
[1764622686197,4.34294842,2764.5,2763.8,7.81438737]
[1764622687012,0.72564746,2764.5,2763.8,8.17662896]
[1764622687166,0.002,2764.5,2763.8,8.17662896]
[1764622687500,0.002,2764.5,2763.9,0.09979107]
[1764622688090,0.002,2764.5,2764.3,0.19958214]
[1764622688291,0.002,2764.5,2764.3,0.09979107]
[1764622688492,0.002,2764.5,2764.2,0.77758214]
[1764622689604,0.002,2764.5,2764.2,4.3951969]
[1764622690625,0.002,2764.5,2764.4,0.09979107]
[1764622691019,0.002,2764.5,2764.4,0.50529507]
[1764622691546,0.002,2764.5,2764.4,4.84831068]
[1764622701831,0.002,2764.5,2764.4,5.42531068]
[1764622702136,0.002,2764.5,2764.4,4.84831068]
[1764622702336,0.002,2764.5,2764.4,6.3158474]
[1764622702638,0.002,2764.5,2764.4,4.60774929]
[1764622702943,0.002,2764.5,2764.4,5.18474929]
[1764622705663,0.002,2764.5,2764.4,5.08495822]
[1764622705870,0.002,2764.5,2764.4,0.36224159]
[1764622706025,0.002,2764.5,2763.0,7.23850886]
[1764622706224,0.002,2764.5,2763.0,3.61925443]
[1764622706423,7.23536646,2764.2,2763.3,0.09979107]
[1764622706619,7.23536646,2764.2,2762.4,3.62001174]
[1764622706620,9.31009957,2764.0,2762.4,3.62001174]
[1764622706851,1.48552276,2764.1,2762.5,0.577]
[1764622707174,1.48552276,2764.1,2763.3,0.09979107]
[1764622707332,0.87208892,2764.0,2763.3,0.09979107]
[1764622708131,0.87208892,2764.0,2763.6,0.09979107]
[1764622708336,0.72559411,2764.1,2763.1,0.577]
[1764622708524,0.72559411,2764.1,2763.3,0.09979107]
[1764622708725,3.617945,2764.0,2763.4,0.36224159]
[1764622708926,7.23589,2764.0,2763.4,0.36224159]
[1764622709258,7.959479,2764.0,2763.4,0.36224159]
[1764622709555,1.44918311,2764.0,2763.4,0.36224159]
[1764622710124,1.81310311,2764.0,2763.1,0.577]
[1764622710557,1.81310311,2764.0,2762.3,0.001]
[1764622710558,10.75928268,2764.0,2762.3,0.001]
[1764622710852,7.60138108,2763.4,2762.4,0.67679107]
[1764622711053,7.60138108,2763.4,2762.3,0.001]
[1764622711054,0.36392,2763.2,2762.3,0.001]
[1764622711273,0.36392,2763.2,2762.3,0.578]
[1764622711475,0.72559411,2763.3,2762.3,0.578]
[1764622711670,1.17019593,2763.2,2762.3,0.578]
[1764622712295,0.72559411,2763.1,2762.3,0.67779107]
[1764622712586,0.72559411,2763.1,2762.3,0.578]
[1764622712743,0.72559411,2763.1,2762.4,0.09979107]
[1764622712946,3.61925443,2763.0,2762.4,0.09979107]
[1764622713146,0.43448485,2762.9,2762.4,0.09979107]
[1764622714550,4.34476183,2763.1,2762.5,0.36224159]
[1764622714751,3.61820681,2763.8,2762.7,0.405504]
[1764622714952,7.59954822,2764.1,2763.1,0.36224159]
[1764622715150,7.59954822,2764.1,2763.2,0.09979107]
[1764622715151,1.17953408,2764.0,2763.2,0.09979107]
[1764622715363,0.72559411,2764.0,2763.2,0.09979107]
[1764622716082,0.72559411,2764.0,2763.1,7.23821464]
[1764622716083,0.72559411,2764.0,2763.4,0.36224159]
[1764622716283,0.72559411,2764.0,2763.5,0.09979107]
[1764622716585,0.72559411,2764.0,2763.4,0.36224159]
[1764622716790,0.72559411,2764.0,2763.5,0.09979107]
[1764622716956,4.34360335,2764.0,2763.5,0.09979107]
[1764622717376,0.72559411,2764.0,2763.5,3.71835743]
[1764622717664,7.23562832,2764.1,2763.5,0.09979107]
[1764622717864,4.34137699,2764.1,2763.5,0.09979107]
[1764622718285,7.95919115,2764.1,2763.5,0.09979107]
[1764622718854,4.34137699,2764.1,2763.5,3.71837478]
[1764622719183,7.95919115,2764.1,2763.5,0.09979107]
[1764622719686,0.42985037,2764.0,2763.3,4.19679559]
[1764622720191,0.42985037,2764.0,2763.3,4.55903718]
[1764622721289,7.2361518,2763.9,2763.3,0.578]
[1764622721458,4.8209524,2763.9,2763.3,4.1968564]
[1764622721657,4.4570324,2763.9,2763.3,4.1968564]
[1764622722873,0.8389565,2763.9,2763.3,7.8157179]
[1764622723375,4.45708971,2763.9,2763.3,4.1968564]
[1764622724978,0.8389565,2763.9,2763.3,4.1968564]
[1764622725154,3.61804447,2764.0,2763.4,0.36224159]
[1764622725363,3.61781411,2764.1,2763.4,3.98088388]
[1764622725685,7.23563275,2764.1,2763.4,3.98088388]
[1764622725896,4.48170721,2764.1,2763.4,7.59961442]
[1764622726191,8.09952585,2764.1,2763.4,3.98088388]
[1764622726414,4.48170721,2764.1,2763.4,3.98088388]
[1764622726619,4.48170721,2764.1,2763.4,7.59961442]
[1764622726813,4.48170721,2764.1,2763.4,3.98088388]
[1764622727100,8.09952585,2764.1,2763.4,3.98088388]
[1764622728701,4.48170721,2764.1,2763.7,0.36224159]
[1764622729102,8.09952585,2764.1,2763.7,0.36224159]
[1764622729302,0.80995258,2764.0,2763.7,0.36224159]
[1764622729612,0.80995258,2764.0,2763.6,0.36224159]
[1764622729972,3.6180759,2763.9,2763.6,0.36224159]
[1764622730172,1.30359411,2763.8,2762.3,0.10079107]
[1764622730379,0.36392,2763.3,2762.3,0.001]
[1764622730587,0.36392,2763.2,2762.3,0.001]
[1764622730783,0.94192,2763.3,2762.3,0.001]
[1764622730984,0.72559411,2763.8,2762.3,4.40333461]
[1764622731185,0.36392,2763.6,2762.4,0.36224159]
[1764622731384,0.19940821,2763.5,2762.4,0.36224159]
[1764622731900,0.92500232,2763.5,2762.4,0.36224159]
[1764622732106,0.72559411,2763.3,2762.7,0.09979107]
[1764622732310,0.72559411,2763.3,2762.7,0.67779107]
[1764622733118,4.1963566,2763.7,2762.7,0.67779107]
[1764622733119,7.028,2764.2,2763.1,0.09979107]
[1764622733306,0.72559411,2764.1,2763.3,0.09979107]
[1764622733612,7.96122233,2764.1,2763.3,0.09979107]
[1764622733818,1.49892223,2764.0,2763.3,0.09979107]
[1764622734200,1.49892223,2764.0,2763.3,7.33739307]
[1764622734530,0.578,2764.6,2763.6,0.19958214]
[1764622734688,4.19523814,2764.6,2763.9,0.36224159]
[1764622734888,3.6193069,2764.5,2763.9,0.36224159]
[1764622735409,7.23665464,2764.5,2763.9,0.36224159]
[1764622735608,0.72366546,2764.4,2763.7,0.578]
[1764622735912,1.44925957,2764.4,2763.7,0.578]
[1764622736206,7.23510472,2764.3,2763.7,0.578]
[1764622738685,0.0997041,2764.2,2762.5,0.72559411]
[1764622738912,0.0997041,2764.2,2763.2,0.19958214]
[1764622739209,0.0997041,2764.2,2763.3,0.578]
[1764622739995,7.23710472,2764.3,2763.5,0.09979107]